[Event "Titled Tuesday Blitz June 27 Late 2023"]
[White "Yoo, Christopher Woojin"]
[Black "Grischuk, Alexander"]
[WhiteFideId "30909694"]
[BlackFideId "4126025"]
[WhiteElo "2985"]
[BlackElo "3027"]
[Result "1-0"]
[Round "8"]
[TimeControl "180+2"]
[Date "2023.06.27"]
[WhiteClock "0:00:07"]
[BlackClock "0:00:04"]
[Board "5"]

1. d4 {[%clk 0:03:00]}  Nf6 {[%clk 0:02:59]} 2. Nf3 {[%clk 0:03:01]}  e6 {[%clk 0:02:58]} 3. c4 {[%clk 0:03:02]}  Bb4+ {[%clk 0:02:57]} 4. Bd2 {[%clk 0:03:01]}  Bxd2+ {[%clk 0:02:57]} 5. Qxd2 {[%clk 0:02:59]}  d5 {[%clk 0:02:58]} 6. Nc3 {[%clk 0:02:57]}  O-O {[%clk 0:02:58]} 7. e3 {[%clk 0:02:44]}  b6 {[%clk 0:02:58]} 8. cxd5 {[%clk 0:02:43]}  Nxd5 {[%clk 0:02:58]} 9. Nxd5 {[%clk 0:02:34]}  Qxd5 {[%clk 0:02:58]} 10. Rc1 {[%clk 0:02:34]}  Bb7 {[%clk 0:02:57]} 11. Be2 {[%clk 0:02:07]}  Qd6 {[%clk 0:02:47]} 12. Qc3 {[%clk 0:02:01]}  Rc8 {[%clk 0:02:41]} 13. O-O {[%clk 0:01:58]}  Nd7 {[%clk 0:02:38]} 14. Rfd1 {[%clk 0:01:53]}  Qe7 {[%clk 0:02:22]} 15. b4 {[%clk 0:01:05]}  a5 {[%clk 0:02:18]} 16. b5 {[%clk 0:01:04]}  c5 {[%clk 0:02:13]} 17. bxc6 {[%clk 0:01:00]}  Bxc6 {[%clk 0:02:06]} 18. Qb2 {[%clk 0:00:55]}  h6 {[%clk 0:02:03]} 19. Rc3 {[%clk 0:00:51]}  Bd5 {[%clk 0:01:54]} 20. Rdc1 {[%clk 0:00:50]}  Rxc3 {[%clk 0:01:52]} 21. Rxc3 {[%clk 0:00:51]}  b5 {[%clk 0:01:23]} 22. Bxb5 {[%clk 0:00:23]}  Qb4 {[%clk 0:01:19]} 23. Rc2 {[%clk 0:00:23]}  Nf6 {[%clk 0:01:06]} 24. a3 {[%clk 0:00:18]}  Qd6 {[%clk 0:00:55]} 25. Ne5 {[%clk 0:00:16]}  a4 {[%clk 0:00:45]} 26. Qc1 {[%clk 0:00:15]}  Bxg2 {[%clk 0:00:07]} 27. Rc8+ {[%clk 0:00:13]}  Rxc8 {[%clk 0:00:07]} 28. Qxc8+ {[%clk 0:00:13]}  Kh7 {[%clk 0:00:08]} 29. Nxf7 {[%clk 0:00:08]}  Qd5 {[%clk 0:00:08]} 30. Qh8+ {[%clk 0:00:09]}  Kg6 {[%clk 0:00:08]} 31. Ne5+ {[%clk 0:00:09]}  Kh5 {[%clk 0:00:05]} 32. Be2+ {[%clk 0:00:07]}  Kh4 {[%clk 0:00:05]} 33. Qxg7 {[%clk 0:00:07]}  Nh5 {[%clk 0:00:04]} 34. Qg4# {[%clk 0:00:07]} 1-0


[Site "https://www.chess.com"]

[Event "Titled Tuesday Blitz June 27 Late 2023"]
[White "Martinez Alcantara, Jose Eduardo"]
[Black "Rustemov, Alexander"]
[WhiteFideId "3805662"]
[BlackFideId "4119002"]
[WhiteElo "3021"]
[BlackElo "2894"]
[Result "1-0"]
[Round "8"]
[TimeControl "180+2"]
[Date "2023.06.27"]
[WhiteClock "0:01:15"]
[BlackClock "0:00:33"]
[Board "6"]

1. e4 {[%clk 0:03:00]}  e6 {[%clk 0:03:00]} 2. d4 {[%clk 0:03:00]}  d5 {[%clk 0:03:01]} 3. Nd2 {[%clk 0:03:00]}  dxe4 {[%clk 0:03:01]} 4. Nxe4 {[%clk 0:03:00]}  Bd7 {[%clk 0:03:02]} 5. Bd3 {[%clk 0:03:00]}  Bc6 {[%clk 0:03:02]} 6. Nf3 {[%clk 0:02:59]}  Nd7 {[%clk 0:03:03]} 7. O-O {[%clk 0:02:59]}  Ngf6 {[%clk 0:03:03]} 8. Ned2 {[%clk 0:03:00]}  Be7 {[%clk 0:03:03]} 9. Re1 {[%clk 0:03:00]}  O-O {[%clk 0:03:03]} 10. c3 {[%clk 0:02:58]}  b6 {[%clk 0:03:03]} 11. Nc4 {[%clk 0:02:56]}  Bb7 {[%clk 0:03:00]} 12. Bf4 {[%clk 0:02:54]}  c5 {[%clk 0:02:59]} 13. Qe2 {[%clk 0:02:40]}  cxd4 {[%clk 0:02:52]} 14. Nxd4 {[%clk 0:02:38]}  Nc5 {[%clk 0:02:52]} 15. Bc2 {[%clk 0:02:39]}  Qd5 {[%clk 0:02:52]} 16. Nf3 {[%clk 0:02:23]}  Ba6 {[%clk 0:02:50]} 17. Nfe5 {[%clk 0:02:20]}  b5 {[%clk 0:02:35]} 18. Rad1 {[%clk 0:02:16]}  Qb7 {[%clk 0:02:20]} 19. Na5 {[%clk 0:02:17]}  Qb6 {[%clk 0:02:16]} 20. Nac6 {[%clk 0:02:17]}  Rfe8 {[%clk 0:02:10]} 21. Nxe7+ {[%clk 0:02:00]}  Rxe7 {[%clk 0:02:10]} 22. Bg5 {[%clk 0:02:00]}  Rd8 {[%clk 0:01:36]} 23. Rxd8+ {[%clk 0:01:57]}  Qxd8 {[%clk 0:01:36]} 24. Nc6 {[%clk 0:01:58]}  Qd6 {[%clk 0:01:34]} 25. Nxe7+ {[%clk 0:01:58]}  Qxe7 {[%clk 0:01:34]} 26. Qe3 {[%clk 0:01:48]}  Bc8 {[%clk 0:01:25]} 27. b4 {[%clk 0:01:43]}  Na4 {[%clk 0:01:23]} 28. Bxa4 {[%clk 0:01:25]}  bxa4 {[%clk 0:01:24]} 29. Qc5 {[%clk 0:01:23]}  Qxc5 {[%clk 0:01:15]} 30. bxc5 {[%clk 0:01:24]}  Nd5 {[%clk 0:00:50]} 31. c4 {[%clk 0:01:18]}  Nc3 {[%clk 0:00:33]} 32. Bd2 {[%clk 0:01:15]} 1-0


[Site "https://www.chess.com"]

[Event "Titled Tuesday Blitz June 27 Late 2023"]
[White "Hakobyan, Aram"]
[Black "Dardha, Daniel"]
[WhiteFideId "13306677"]
[BlackFideId "240990"]
[WhiteElo "3020"]
[BlackElo "2900"]
[Result "0-1"]
[Round "8"]
[TimeControl "180+2"]
[Date "2023.06.27"]
[WhiteClock "0:00:02"]
[BlackClock "0:00:07"]
[Board "8"]

1. d4 {[%clk 0:03:00]}  Nf6 {[%clk 0:02:59]} 2. c4 {[%clk 0:03:00]}  c5 {[%clk 0:02:59]} 3. d5 {[%clk 0:03:00]}  a6 {[%clk 0:02:59]} 4. Qc2 {[%clk 0:02:59]}  b5 {[%clk 0:02:41]} 5. e4 {[%clk 0:02:59]}  d6 {[%clk 0:02:35]} 6. cxb5 {[%clk 0:02:56]}  g6 {[%clk 0:02:33]} 7. Nc3 {[%clk 0:02:53]}  Bg7 {[%clk 0:02:33]} 8. a4 {[%clk 0:02:52]}  O-O {[%clk 0:02:31]} 9. Nf3 {[%clk 0:02:49]}  Nbd7 {[%clk 0:02:22]} 10. Ra3 {[%clk 0:02:46]}  Ng4 {[%clk 0:02:05]} 11. Be2 {[%clk 0:02:44]}  Nge5 {[%clk 0:02:03]} 12. Nd2 {[%clk 0:02:38]}  axb5 {[%clk 0:02:00]} 13. Bxb5 {[%clk 0:02:27]}  Nb6 {[%clk 0:01:40]} 14. b3 {[%clk 0:02:11]}  f5 {[%clk 0:01:39]} 15. O-O {[%clk 0:02:05]}  f4 {[%clk 0:01:38]} 16. f3 {[%clk 0:02:02]}  g5 {[%clk 0:01:38]} 17. Nc4 {[%clk 0:01:49]}  Nbxc4 {[%clk 0:01:34]} 18. bxc4 {[%clk 0:01:48]}  Ba6 {[%clk 0:01:24]} 19. Bxa6 {[%clk 0:01:39]}  Rxa6 {[%clk 0:01:24]} 20. Nb5 {[%clk 0:01:40]}  Qd7 {[%clk 0:01:16]} 21. Bb2 {[%clk 0:01:28]}  Nxc4 {[%clk 0:00:59]} 22. Bxg7 {[%clk 0:01:09]}  Nxa3 {[%clk 0:00:51]} 23. Qc3 {[%clk 0:01:09]}  Nxb5 {[%clk 0:00:38]} 24. axb5 {[%clk 0:01:08]}  Raa8 {[%clk 0:00:37]} 25. Bxf8 {[%clk 0:01:06]}  Rxf8 {[%clk 0:00:38]} 26. Rb1 {[%clk 0:01:03]}  Rb8 {[%clk 0:00:36]} 27. b6 {[%clk 0:01:00]}  Qa4 {[%clk 0:00:32]} 28. h3 {[%clk 0:00:52]}  Qa2 {[%clk 0:00:32]} 29. Qc1 {[%clk 0:00:36]}  c4 {[%clk 0:00:29]} 30. Kh2 {[%clk 0:00:33]}  c3 {[%clk 0:00:24]} 31. Rb4 {[%clk 0:00:27]}  Qd2 {[%clk 0:00:23]} 32. Qxd2 {[%clk 0:00:14]}  cxd2 {[%clk 0:00:23]} 33. Rd4 {[%clk 0:00:15]}  Rxb6 {[%clk 0:00:21]} 34. Rxd2 {[%clk 0:00:15]}  Kg7 {[%clk 0:00:18]} 35. Rc2 {[%clk 0:00:15]}  h5 {[%clk 0:00:16]} 36. Rc8 {[%clk 0:00:15]}  Rb2 {[%clk 0:00:13]} 37. Re8 {[%clk 0:00:15]}  Kf7 {[%clk 0:00:13]} 38. Rh8 {[%clk 0:00:16]}  g4 {[%clk 0:00:11]} 39. hxg4 {[%clk 0:00:07]}  hxg4 {[%clk 0:00:11]} 40. Rh4 {[%clk 0:00:06]}  gxf3 {[%clk 0:00:05]} 41. Rxf4+ {[%clk 0:00:07]}  Kg6 {[%clk 0:00:06]} 42. Rxf3 {[%clk 0:00:08]}  Re2 {[%clk 0:00:06]} 43. Rf4 {[%clk 0:00:05]}  Kg5 {[%clk 0:00:07]} 44. Rf5+ {[%clk 0:00:01]}  Kg4 {[%clk 0:00:07]} 45. Rf7 {[%clk 0:00:01]}  Rxe4 {[%clk 0:00:08]} 46. Rg7+ {[%clk 0:00:01]}  Kf5 {[%clk 0:00:07]} 47. Rf7+ {[%clk 0:00:01]}  Kg6 {[%clk 0:00:07]} 48. Rf8 {[%clk 0:00:01]}  Re5 {[%clk 0:00:08]} 49. Re8 {[%clk 0:00:01]}  Kf7 {[%clk 0:00:08]} 50. Rh8 {[%clk 0:00:01]}  Rxd5 {[%clk 0:00:08]} 51. g4 {[%clk 0:00:02]}  Rd3 {[%clk 0:00:07]} 52. Rh6 {[%clk 0:00:01]}  d5 {[%clk 0:00:06]} 53. g5 {[%clk 0:00:02]}  Re3 {[%clk 0:00:05]} 54. Kg2 {[%clk 0:00:02]}  Re5 {[%clk 0:00:05]} 55. g6+ {[%clk 0:00:02]}  Kg7 {[%clk 0:00:05]} 56. Rh3 {[%clk 0:00:02]}  Kxg6 {[%clk 0:00:05]} 57. Kf3 {[%clk 0:00:02]}  Kf5 {[%clk 0:00:05]} 58. Rh5+ {[%clk 0:00:03]}  Ke6 {[%clk 0:00:06]} 59. Rh6+ {[%clk 0:00:03]}  Kd7 {[%clk 0:00:06]} 60. Rh4 {[%clk 0:00:02]}  e6 {[%clk 0:00:07]} 61. Ra4 {[%clk 0:00:02]}  Rf5+ {[%clk 0:00:06]} 62. Ke3 {[%clk 0:00:02]}  Kd6 {[%clk 0:00:07]} 63. Kd4 {[%clk 0:00:02]}  Rf4+ {[%clk 0:00:07]} 0-1


[Site "https://www.chess.com"]

[Event "Titled Tuesday Blitz June 27 Late 2023"]
[White "Horvath, Dominik"]
[Black "Sanal, Vahap"]
[WhiteFideId "1642561"]
[BlackFideId "6300545"]
[WhiteElo "2896"]
[BlackElo "2976"]
[Result "1-0"]
[Round "8"]
[TimeControl "180+2"]
[Date "2023.06.27"]
[WhiteClock "0:01:05"]
[BlackClock "0:00:09"]
[Board "10"]

1. b3 {[%clk 0:03:00]}  d5 {[%clk 0:02:57]} 2. Bb2 {[%clk 0:03:00]}  Bf5 {[%clk 0:02:57]} 3. d3 {[%clk 0:02:58]}  e6 {[%clk 0:02:56]} 4. e3 {[%clk 0:02:57]}  Nf6 {[%clk 0:02:54]} 5. Nd2 {[%clk 0:02:58]}  h6 {[%clk 0:02:54]} 6. h3 {[%clk 0:02:58]}  Be7 {[%clk 0:02:55]} 7. g4 {[%clk 0:02:58]}  Bh7 {[%clk 0:02:54]} 8. Bg2 {[%clk 0:02:59]}  a5 {[%clk 0:02:54]} 9. a3 {[%clk 0:02:59]}  a4 {[%clk 0:02:54]} 10. b4 {[%clk 0:02:59]}  Nbd7 {[%clk 0:02:54]} 11. Ne2 {[%clk 0:02:59]}  c5 {[%clk 0:02:55]} 12. bxc5 {[%clk 0:02:54]}  Nxc5 {[%clk 0:02:55]} 13. Rb1 {[%clk 0:02:50]}  O-O {[%clk 0:02:55]} 14. Rg1 {[%clk 0:02:49]}  b5 {[%clk 0:02:50]} 15. Bh1 {[%clk 0:02:43]}  Qd7 {[%clk 0:02:40]} 16. h4 {[%clk 0:02:43]}  Bxd3 {[%clk 0:02:40]} 17. cxd3 {[%clk 0:02:35]}  Nxd3+ {[%clk 0:02:40]} 18. Kf1 {[%clk 0:02:35]}  Nxb2 {[%clk 0:02:40]} 19. Rxb2 {[%clk 0:02:36]}  Bxa3 {[%clk 0:02:40]} 20. Rb1 {[%clk 0:02:15]}  Rfc8 {[%clk 0:02:37]} 21. g5 {[%clk 0:02:04]}  hxg5 {[%clk 0:02:37]} 22. hxg5 {[%clk 0:02:04]}  Ne8 {[%clk 0:02:37]} 23. Ne4 {[%clk 0:01:59]}  Be7 {[%clk 0:02:18]} 24. g6 {[%clk 0:01:52]}  f5 {[%clk 0:02:12]} 25. N4c3 {[%clk 0:01:49]}  Nf6 {[%clk 0:02:01]} 26. Nxb5 {[%clk 0:01:46]}  a3 {[%clk 0:02:02]} 27. Nbc3 {[%clk 0:01:44]}  Bd6 {[%clk 0:01:42]} 28. Nxd5 {[%clk 0:01:35]}  Nxd5 {[%clk 0:01:33]} 29. Bxd5 {[%clk 0:01:35]}  a2 {[%clk 0:00:57]} 30. Bxa2 {[%clk 0:01:30]}  Rxa2 {[%clk 0:00:55]} 31. Rb6 {[%clk 0:01:30]}  Rd8 {[%clk 0:00:42]} 32. Rh1 {[%clk 0:01:30]}  Qc7 {[%clk 0:00:15]} 33. Nc3 {[%clk 0:01:01]}  Qxb6 {[%clk 0:00:09]} 34. Rh8+ {[%clk 0:01:00]}  Kxh8 {[%clk 0:00:08]} 35. Qh5+ {[%clk 0:01:01]}  Kg8 {[%clk 0:00:07]} 36. Qh7+ {[%clk 0:01:02]}  Kf8 {[%clk 0:00:08]} 37. Qh8+ {[%clk 0:01:03]}  Ke7 {[%clk 0:00:08]} 38. Qxg7+ {[%clk 0:01:04]}  Ke8 {[%clk 0:00:09]} 39. Qf7# {[%clk 0:01:05]} 1-0


[Site "https://www.chess.com"]

[Event "Titled Tuesday Blitz June 27 Late 2023"]
[White "Sjugirov, Sanan"]
[Black "Leitao, Rafael"]
[WhiteFideId "4189302"]
[BlackFideId "2101246"]
[WhiteElo "2949"]
[BlackElo "2803"]
[Result "1-0"]
[Round "8"]
[TimeControl "180+2"]
[Date "2023.06.27"]
[WhiteClock "0:00:02"]
[BlackClock "0:00:04"]
[Board "11"]

1. d4 {[%clk 0:02:58]}  Nf6 {[%clk 0:02:58]} 2. c4 {[%clk 0:02:58]}  g6 {[%clk 0:02:57]} 3. Nc3 {[%clk 0:02:59]}  Bg7 {[%clk 0:02:57]} 4. e4 {[%clk 0:02:59]}  d6 {[%clk 0:02:58]} 5. Nf3 {[%clk 0:03:00]}  O-O {[%clk 0:02:57]} 6. Be3 {[%clk 0:03:00]}  Nbd7 {[%clk 0:02:55]} 7. h3 {[%clk 0:02:59]}  e5 {[%clk 0:02:55]} 8. d5 {[%clk 0:02:59]}  Nc5 {[%clk 0:02:54]} 9. Nd2 {[%clk 0:02:58]}  a5 {[%clk 0:02:54]} 10. g4 {[%clk 0:02:53]}  c6 {[%clk 0:02:53]} 11. Be2 {[%clk 0:02:50]}  cxd5 {[%clk 0:02:42]} 12. cxd5 {[%clk 0:02:49]}  a4 {[%clk 0:02:32]} 13. a3 {[%clk 0:02:48]}  Bd7 {[%clk 0:02:28]} 14. g5 {[%clk 0:02:30]}  Ne8 {[%clk 0:02:27]} 15. h4 {[%clk 0:02:28]}  f5 {[%clk 0:02:10]} 16. f3 {[%clk 0:01:59]}  Rc8 {[%clk 0:01:50]} 17. Qc2 {[%clk 0:01:50]}  b5 {[%clk 0:01:42]} 18. Rg1 {[%clk 0:01:29]}  Qb6 {[%clk 0:01:35]} 19. h5 {[%clk 0:01:23]}  gxh5 {[%clk 0:01:21]} 20. Qb1 {[%clk 0:00:57]}  b4 {[%clk 0:01:16]} 21. axb4 {[%clk 0:00:50]}  Qxb4 {[%clk 0:01:15]} 22. Qa2 {[%clk 0:00:47]}  fxe4 {[%clk 0:01:05]} 23. fxe4 {[%clk 0:00:47]}  Bg4 {[%clk 0:00:59]} 24. Qa3 {[%clk 0:00:42]}  Qb7 {[%clk 0:00:47]} 25. Bxc5 {[%clk 0:00:33]}  Rxc5 {[%clk 0:00:46]} 26. Bxg4 {[%clk 0:00:31]}  hxg4 {[%clk 0:00:46]} 27. Rxg4 {[%clk 0:00:32]}  Nc7 {[%clk 0:00:44]} 28. Rg3 {[%clk 0:00:18]}  Nb5 {[%clk 0:00:41]} 29. Qb4 {[%clk 0:00:15]}  Qf7 {[%clk 0:00:37]} 30. Rf3 {[%clk 0:00:14]}  Qd7 {[%clk 0:00:31]} 31. Rxf8+ {[%clk 0:00:13]}  Bxf8 {[%clk 0:00:31]} 32. Nxb5 {[%clk 0:00:10]}  Rxb5 {[%clk 0:00:29]} 33. Qxa4 {[%clk 0:00:10]}  Qb7 {[%clk 0:00:20]} 34. Qa6 {[%clk 0:00:03]}  Rxb2 {[%clk 0:00:20]} 35. Qxb7 {[%clk 0:00:04]}  Rxb7 {[%clk 0:00:20]} 36. Ke2 {[%clk 0:00:04]}  Be7 {[%clk 0:00:20]} 37. Nc4 {[%clk 0:00:04]}  Rd7 {[%clk 0:00:12]} 38. Ra6 {[%clk 0:00:03]}  Kf7 {[%clk 0:00:12]} 39. Kf3 {[%clk 0:00:04]}  Bxg5 {[%clk 0:00:09]} 40. Nxd6+ {[%clk 0:00:03]}  Kg8 {[%clk 0:00:07]} 41. Nf5 {[%clk 0:00:03]}  h5 {[%clk 0:00:04]} 42. Rg6+ {[%clk 0:00:02]} 1-0


[Site "https://www.chess.com"]

[Event "Titled Tuesday Blitz June 27 Late 2023"]
[White "Morefield, Jason"]
[Black "Nihal Sarin"]
[WhiteFideId "30920825"]
[BlackFideId "25092340"]
[WhiteElo "2769"]
[BlackElo "3102"]
[Result "0-1"]
[Round "8"]
[TimeControl "180+2"]
[Date "2023.06.27"]
[WhiteClock "0:00:00"]
[BlackClock "0:01:04"]
[Board "14"]

1. e4 {[%clk 0:02:56]}  e5 {[%clk 0:02:59]} 2. Nf3 {[%clk 0:02:57]}  Nc6 {[%clk 0:03:00]} 3. Bb5 {[%clk 0:02:56]}  a6 {[%clk 0:02:58]} 4. Ba4 {[%clk 0:02:56]}  Nf6 {[%clk 0:02:59]} 5. O-O {[%clk 0:02:57]}  Be7 {[%clk 0:02:59]} 6. d3 {[%clk 0:02:54]}  b5 {[%clk 0:02:58]} 7. Bb3 {[%clk 0:02:54]}  d6 {[%clk 0:02:59]} 8. a4 {[%clk 0:02:53]}  Bd7 {[%clk 0:02:58]} 9. c3 {[%clk 0:02:53]}  O-O {[%clk 0:02:57]} 10. Re1 {[%clk 0:02:54]}  b4 {[%clk 0:02:54]} 11. Nbd2 {[%clk 0:02:53]}  Rb8 {[%clk 0:02:51]} 12. Nc4 {[%clk 0:02:40]}  bxc3 {[%clk 0:02:49]} 13. bxc3 {[%clk 0:02:39]}  Be6 {[%clk 0:02:50]} 14. a5 {[%clk 0:02:32]}  h6 {[%clk 0:02:47]} 15. d4 {[%clk 0:02:16]}  exd4 {[%clk 0:02:34]} 16. cxd4 {[%clk 0:02:15]}  Bg4 {[%clk 0:02:23]} 17. Ba4 {[%clk 0:02:08]}  Bxf3 {[%clk 0:02:20]} 18. gxf3 {[%clk 0:02:09]}  Nb4 {[%clk 0:02:19]} 19. d5 {[%clk 0:01:54]}  Nd7 {[%clk 0:02:09]} 20. Be3 {[%clk 0:01:41]}  Ne5 {[%clk 0:01:35]} 21. Nxe5 {[%clk 0:01:36]}  dxe5 {[%clk 0:01:36]} 22. Rc1 {[%clk 0:01:23]}  Bd6 {[%clk 0:01:36]} 23. Kh1 {[%clk 0:01:12]}  f5 {[%clk 0:01:33]} 24. Rg1 {[%clk 0:01:09]}  Qh4 {[%clk 0:01:33]} 25. exf5 {[%clk 0:00:29]}  e4 {[%clk 0:01:33]} 26. Rg2 {[%clk 0:00:26]}  Nd3 {[%clk 0:01:32]} 27. Rc2 {[%clk 0:00:22]}  exf3 {[%clk 0:01:26]} 28. Qxf3 {[%clk 0:00:05]}  Ne1 {[%clk 0:01:07]} 29. Qg4 {[%clk 0:00:03]}  Nxg2 {[%clk 0:01:08]} 30. Qxg2 {[%clk 0:00:02]}  Rb1+ {[%clk 0:01:06]} 31. Bc1 {[%clk 0:00:00]}  Qxa4 {[%clk 0:01:04]} 0-1


[Site "https://www.chess.com"]

[Event "Titled Tuesday Blitz June 27 Late 2023"]
[White "Cruz, Jonathan"]
[Black "Bluebaum, Matthias"]
[WhiteFideId "3802124"]
[BlackFideId "24651516"]
[WhiteElo "2780"]
[BlackElo "3055"]
[Result "0-1"]
[Round "8"]
[TimeControl "180+2"]
[Date "2023.06.27"]
[WhiteClock "0:00:25"]
[BlackClock "0:01:23"]
[Board "15"]

1. Nf3 {[%clk 0:02:35]}  d5 {[%clk 0:02:59]} 2. e3 {[%clk 0:02:32]}  Nf6 {[%clk 0:02:58]} 3. c4 {[%clk 0:02:33]}  e6 {[%clk 0:02:59]} 4. Nc3 {[%clk 0:02:28]}  Bd6 {[%clk 0:02:59]} 5. d4 {[%clk 0:02:28]}  O-O {[%clk 0:02:59]} 6. Bd3 {[%clk 0:02:24]}  dxc4 {[%clk 0:02:59]} 7. Bxc4 {[%clk 0:02:23]}  Nc6 {[%clk 0:03:00]} 8. O-O {[%clk 0:01:50]}  e5 {[%clk 0:02:59]} 9. d5 {[%clk 0:01:46]}  Ne7 {[%clk 0:02:59]} 10. e4 {[%clk 0:01:46]}  a6 {[%clk 0:02:59]} 11. h3 {[%clk 0:01:45]}  Ng6 {[%clk 0:03:00]} 12. a4 {[%clk 0:01:43]}  Bd7 {[%clk 0:02:59]} 13. Re1 {[%clk 0:01:39]}  h6 {[%clk 0:03:00]} 14. Be3 {[%clk 0:01:32]}  Nh5 {[%clk 0:02:59]} 15. Nxe5 {[%clk 0:01:29]}  Nxe5 {[%clk 0:03:00]} 16. Be2 {[%clk 0:01:20]}  Nf6 {[%clk 0:02:50]} 17. f4 {[%clk 0:01:11]}  Ng6 {[%clk 0:02:45]} 18. e5 {[%clk 0:01:11]}  Nxe5 {[%clk 0:02:46]} 19. fxe5 {[%clk 0:01:12]}  Bxe5 {[%clk 0:02:47]} 20. Bf3 {[%clk 0:01:07]}  Bd6 {[%clk 0:02:46]} 21. Qd2 {[%clk 0:01:05]}  Re8 {[%clk 0:02:45]} 22. Rf1 {[%clk 0:00:55]}  Qe7 {[%clk 0:02:38]} 23. Rae1 {[%clk 0:00:32]}  Bc5 {[%clk 0:02:38]} 24. Bf2 {[%clk 0:00:29]}  Qd6 {[%clk 0:02:35]} 25. Rd1 {[%clk 0:00:27]}  Bxf2+ {[%clk 0:02:30]} 26. Qxf2 {[%clk 0:00:27]}  Re7 {[%clk 0:02:30]} 27. Kh1 {[%clk 0:00:26]}  Rae8 {[%clk 0:02:31]} 28. Rd2 {[%clk 0:00:17]}  b5 {[%clk 0:02:17]} 29. axb5 {[%clk 0:00:17]}  axb5 {[%clk 0:02:18]} 30. Ne2 {[%clk 0:00:15]}  b4 {[%clk 0:02:01]} 31. Nd4 {[%clk 0:00:14]}  Re5 {[%clk 0:01:54]} 32. Nc6 {[%clk 0:00:14]}  Bxc6 {[%clk 0:01:47]} 33. dxc6 {[%clk 0:00:14]}  Qe7 {[%clk 0:01:48]} 34. Qd4 {[%clk 0:00:10]}  Re1 {[%clk 0:01:47]} 35. Rd1 {[%clk 0:00:10]}  Rxf1+ {[%clk 0:01:47]} 36. Rxf1 {[%clk 0:00:11]}  Rd8 {[%clk 0:01:43]} 37. Qf2 {[%clk 0:00:06]}  Qe5 {[%clk 0:01:41]} 38. Re1 {[%clk 0:00:06]}  Qf4 {[%clk 0:01:39]} 39. Qg1 {[%clk 0:00:03]}  g6 {[%clk 0:01:36]} 40. Rf1 {[%clk 0:00:03]}  Kg7 {[%clk 0:01:36]} 41. Bg4 {[%clk 0:00:02]}  Qe5 {[%clk 0:01:36]} 42. Bf3 {[%clk 0:00:02]}  Qxb2 {[%clk 0:01:36]} 43. Qc5 {[%clk 0:00:02]}  Qd4 {[%clk 0:01:35]} 44. Qe7 {[%clk 0:00:02]}  Qd6 {[%clk 0:01:35]} 45. Qe3 {[%clk 0:00:02]}  Re8 {[%clk 0:01:35]} 46. Qb3 {[%clk 0:00:02]}  h5 {[%clk 0:01:27]} 47. Rb1 {[%clk 0:00:03]}  Rb8 {[%clk 0:01:12]} 48. Qc4 {[%clk 0:00:03]}  Qe5 {[%clk 0:01:07]} 49. Qd3 {[%clk 0:00:02]}  h4 {[%clk 0:01:03]} 50. Qb3 {[%clk 0:00:02]}  Ne4 {[%clk 0:01:00]} 51. Kg1 {[%clk 0:00:01]}  Nd2 {[%clk 0:00:59]} 52. Qb2 {[%clk 0:00:01]}  Qxb2 {[%clk 0:00:58]} 53. Rxb2 {[%clk 0:00:02]}  Nxf3+ {[%clk 0:00:59]} 54. gxf3 {[%clk 0:00:03]}  Kf6 {[%clk 0:00:59]} 55. Kf2 {[%clk 0:00:03]}  Ke5 {[%clk 0:01:00]} 56. Ke3 {[%clk 0:00:03]}  Kd5 {[%clk 0:01:01]} 57. Kd3 {[%clk 0:00:03]}  b3 {[%clk 0:01:01]} 58. Kc3 {[%clk 0:00:03]}  Kxc6 {[%clk 0:01:02]} 59. Re2 {[%clk 0:00:02]}  b2 {[%clk 0:01:03]} 60. Rxb2 {[%clk 0:00:02]}  Rxb2 {[%clk 0:01:04]} 61. Kxb2 {[%clk 0:00:02]}  Kd5 {[%clk 0:01:04]} 62. Kc3 {[%clk 0:00:03]}  Ke5 {[%clk 0:01:05]} 63. Kd3 {[%clk 0:00:04]}  Kf4 {[%clk 0:01:06]} 64. Ke2 {[%clk 0:00:05]}  c5 {[%clk 0:01:07]} 65. Kf2 {[%clk 0:00:06]}  f5 {[%clk 0:01:07]} 66. Kg2 {[%clk 0:00:06]}  g5 {[%clk 0:01:08]} 67. Kf2 {[%clk 0:00:07]}  c4 {[%clk 0:01:09]} 68. Ke2 {[%clk 0:00:08]}  c3 {[%clk 0:01:10]} 69. Kd3 {[%clk 0:00:09]}  Kxf3 {[%clk 0:01:10]} 70. Kc2 {[%clk 0:00:09]}  Kg3 {[%clk 0:01:11]} 71. Kxc3 {[%clk 0:00:10]}  Kxh3 {[%clk 0:01:12]} 72. Kd3 {[%clk 0:00:11]}  Kg4 {[%clk 0:01:13]} 73. Kd4 {[%clk 0:00:12]}  Kf4 {[%clk 0:01:14]} 74. Kd5 {[%clk 0:00:12]}  g4 {[%clk 0:01:15]} 75. Ke6 {[%clk 0:00:13]}  g3 {[%clk 0:01:16]} 76. Kf6 {[%clk 0:00:14]}  h3 {[%clk 0:01:17]} 77. Ke6 {[%clk 0:00:15]}  h2 {[%clk 0:01:18]} 78. Kf6 {[%clk 0:00:16]}  g2 {[%clk 0:01:19]} 79. Ke6 {[%clk 0:00:17]}  Kg4 {[%clk 0:01:19]} 80. Kf6 {[%clk 0:00:17]}  f4 {[%clk 0:01:20]} 81. Ke6 {[%clk 0:00:18]}  f3 {[%clk 0:01:21]} 82. Kf6 {[%clk 0:00:19]}  f2 {[%clk 0:01:22]} 83. Ke6 {[%clk 0:00:20]}  f1=Q {[%clk 0:01:23]} 84. Ke7 {[%clk 0:00:21]}  g1=Q {[%clk 0:01:23]} 85. Ke6 {[%clk 0:00:22]}  h1=Q {[%clk 0:01:23]} 86. Ke7 {[%clk 0:00:23]}  Qe4+ {[%clk 0:01:23]} 87. Kd7 {[%clk 0:00:23]}  Qgd4+ {[%clk 0:01:23]} 88. Kc7 {[%clk 0:00:24]}  Qfc4+ {[%clk 0:01:24]} 89. Kb8 {[%clk 0:00:25]}  Qb6# {[%clk 0:01:23]} 0-1


[Site "https://www.chess.com"]

[Event "Titled Tuesday Blitz June 27 Late 2023"]
[White "Xiong, Jeffery"]
[Black "Nazari, Arad"]
[WhiteFideId "2047640"]
[BlackFideId "12577324"]
[WhiteElo "2917"]
[BlackElo "2758"]
[Result "1-0"]
[Round "8"]
[TimeControl "180+2"]
[Date "2023.06.27"]
[WhiteClock "0:00:54"]
[BlackClock "0:00:09"]
[Board "17"]

1. e4 {[%clk 0:03:00]}  c5 {[%clk 0:02:59]} 2. Nf3 {[%clk 0:03:01]}  d6 {[%clk 0:03:00]} 3. Nc3 {[%clk 0:03:02]}  Nf6 {[%clk 0:03:00]} 4. d4 {[%clk 0:03:02]}  cxd4 {[%clk 0:03:01]} 5. Qxd4 {[%clk 0:03:03]}  Nc6 {[%clk 0:03:01]} 6. Qd3 {[%clk 0:03:04]}  g6 {[%clk 0:03:00]} 7. Nd5 {[%clk 0:03:04]}  Bg7 {[%clk 0:02:59]} 8. c3 {[%clk 0:03:05]}  O-O {[%clk 0:02:59]} 9. Bg5 {[%clk 0:03:06]}  Nxd5 {[%clk 0:02:50]} 10. exd5 {[%clk 0:03:07]}  Ne5 {[%clk 0:02:42]} 11. Nxe5 {[%clk 0:03:07]}  dxe5 {[%clk 0:02:43]} 12. Qd2 {[%clk 0:02:57]}  Qd6 {[%clk 0:02:38]} 13. Bc4 {[%clk 0:02:57]}  b6 {[%clk 0:02:23]} 14. O-O {[%clk 0:02:57]}  Bb7 {[%clk 0:02:23]} 15. a4 {[%clk 0:02:53]}  Rac8 {[%clk 0:02:23]} 16. Bb3 {[%clk 0:02:44]}  Rfd8 {[%clk 0:02:13]} 17. Rfd1 {[%clk 0:02:42]}  Ba6 {[%clk 0:02:13]} 18. a5 {[%clk 0:02:37]}  Bc4 {[%clk 0:02:08]} 19. Bxc4 {[%clk 0:02:37]}  Rxc4 {[%clk 0:02:08]} 20. axb6 {[%clk 0:02:38]}  axb6 {[%clk 0:02:09]} 21. Qd3 {[%clk 0:02:24]}  b5 {[%clk 0:02:04]} 22. Ra7 {[%clk 0:02:23]}  Bf6 {[%clk 0:01:57]} 23. Be3 {[%clk 0:02:01]}  e4 {[%clk 0:01:41]} 24. Qd2 {[%clk 0:02:00]}  b4 {[%clk 0:01:30]} 25. cxb4 {[%clk 0:01:46]}  Rxb4 {[%clk 0:00:52]} 26. Qc2 {[%clk 0:01:45]}  Qe5 {[%clk 0:00:27]} 27. b3 {[%clk 0:01:29]}  Rxd5 {[%clk 0:00:25]} 28. h3 {[%clk 0:01:09]}  Kg7 {[%clk 0:00:21]} 29. Ra4 {[%clk 0:00:59]}  Rxd1+ {[%clk 0:00:16]} 30. Qxd1 {[%clk 0:00:59]}  Qb5 {[%clk 0:00:15]} 31. Qd2 {[%clk 0:00:54]}  h5 {[%clk 0:00:09]} 32. Rxb4 {[%clk 0:00:54]} 1-0


[Site "https://www.chess.com"]